lending/lending_fUSD_20251218
["ID","MTS","AMOUNT","RATE_DAILY","PERIOD"]
[398984264,1766046683714,-828.02,0.00042557,120]
[398984265,1766046683767,-2747.72,0.00042557,120]
[398984266,1766046683816,-2611.42,0.00042557,120]
[398984267,1766046683867,-848.41,0.00042557,120]
[398984268,1766046683919,-1165.74,0.00042557,120]
[398984269,1766046683969,-842.61,0.00042557,120]
[398984270,1766046684020,-1022.9,0.00042557,120]
[398984271,1766046684070,-606.69,0.00042557,120]
[398984272,1766046684123,-10394.34,0.00042557,120]
[398984273,1766046684175,-828.02,0.00042557,120]
[398984274,1766046684225,-2747.72,0.00042557,120]
[398984275,1766046684275,-848.41,0.00042557,120]
[398984276,1766046684332,-2611.42,0.00042557,120]
[398984277,1766046684384,-842.61,0.00042557,120]
[398984278,1766046684434,-1165.74,0.00042557,120]
[398984279,1766046684483,-606.69,0.00042557,120]
[398984280,1766046684530,-10394.34,0.00042557,120]
[398984281,1766046684577,-828.02,0.00042557,120]
[398984282,1766046684625,-2747.72,0.00042557,120]
[398984283,1766046684672,-2611.42,0.00042557,120]
[398984284,1766046684722,-848.41,0.00042557,120]
[398984285,1766046684768,-842.61,0.00042557,120]
[398984286,1766046684816,-500.77287383,0.00042557,120]
[398984287,1766046684863,-1022.9,0.00042557,120]
[398984288,1766046684912,-606.69,0.00042557,120]
[398984289,1766046684963,-10394.34,0.00042557,120]
[398984290,1766046685012,-1165.74,0.00042557,120]
[398984291,1766046685061,-828.02,0.00042557,120]
[398984292,1766046685111,-2611.42,0.00042557,120]
[398984293,1766046685161,-2747.72,0.00042557,120]
[398984294,1766046685209,-842.61,0.00042557,120]
[398984295,1766046685259,-848.41,0.00042557,120]
[398984296,1766046685308,-606.69,0.00042557,120]
[398984297,1766046685354,-1158.01,0.00042557,120]
[398984298,1766046685402,-1022.9,0.00042557,120]
[398984299,1766046685451,-10394.34,0.00042557,120]
[398984300,1766046685499,-828.20717406,0.00042557,120]
[398984301,1766046685545,-1165.74,0.00042557,120]
[398984302,1766046685593,-2611.42,0.00042557,120]
[398984303,1766046685643,-2747.72,0.00042557,120]
[398984304,1766046685690,-848.41,0.00042557,120]
[398984305,1766046685737,-606.69,0.00042557,120]
[398984306,1766046685783,-1158.01,0.00042557,120]
[398984307,1766046685828,-1022.9,0.00042557,120]
[398984308,1766046685875,-842.61,0.00042557,120]
[398984309,1766046685920,-10394.34,0.00042557,120]
[398984310,1766046685966,-1165.74,0.00042557,120]
[398984311,1766046686017,-848.41,0.00042557,120]
[398984312,1766046686076,-2611.42,0.00042557,120]
[398984313,1766046686129,-1158.01,0.00042557,120]
[398984314,1766046686177,-606.69,0.00042557,120]
[398984315,1766046686225,-1022.9,0.00042557,120]
[398984316,1766046686274,-842.72848927,0.00042557,120]
[398984317,1766046686321,-10394.34,0.00042557,120]
[398984318,1766046686373,-2747.72,0.00042557,120]
[398984319,1766046686420,-1165.74,0.00042557,120]
[398984320,1766046686468,-848.41,0.00042557,120]
[398984321,1766046686516,-1158.01,0.00042557,120]
[398984322,1766046686561,-2611.42,0.00042557,120]
[398984323,1766046686605,-606.89915551,0.00042557,120]
[398984324,1766046686649,-1022.9,0.00042557,120]
[398984325,1766046687113,-10394.34,0.00042557,120]
[398984326,1766046687160,-2747.72,0.00042557,120]
[398984327,1766046687206,-1165.74,0.00042557,120]
[398984328,1766046687259,-848.41,0.00042557,120]
[398984329,1766046687305,-1158.01,0.00042557,120]
[398984330,1766046687354,-2611.42,0.00042557,120]
[398984331,1766046687399,-1023.04864248,0.00042557,120]
[398984332,1766046687442,-10394.34,0.00042557,120]
[398984333,1766046687488,-2747.72,0.00042557,120]
[398984334,1766046687536,-1165.74,0.00042557,120]
[398984335,1766046687580,-848.56297131,0.00042557,120]
[398984336,1766046687626,-2611.5,0.00042557,120]
[398984337,1766046687670,-1158.01,0.00042557,120]
[398984338,1766046687717,-10394.34,0.00042557,120]
[398984339,1766046687763,-2747.72,0.00042557,120]
[398984340,1766046687809,-1165.74,0.00042557,120]
[398984341,1766046687855,-10394.34,0.00042557,120]
[398984342,1766046687901,-1158.01,0.00042557,120]
[398984343,1766046687947,-2747.72,0.00042557,120]
[398984344,1766046687993,-1165.74,0.00042557,120]
[398984345,1766046688039,-10394.34,0.00042557,120]
[398984346,1766046688087,-2747.72,0.00042557,120]
[398984347,1766046688132,-2290.63,0.00042557,120]
[398984348,1766046688179,-1158.01,0.00042557,120]
[398984349,1766046688226,-1165.74,0.00042557,120]
[398984350,1766046688274,-500.0,0.00042557,120]
[398984351,1766046688321,-2747.72,0.00042557,120]
[398984352,1766046688369,-10394.34,0.00042557,120]
[398984353,1766046688419,-1165.74,0.00042557,120]
[398984354,1766046688468,-1158.01,0.00042557,120]
[398984355,1766046688514,-500.0,0.00042557,120]
[398984356,1766046688563,-2747.72,0.00042557,120]
[398984357,1766046688612,-2290.63,0.00042557,120]
[398984358,1766046688658,-10394.34,0.00042557,120]
[398984359,1766046688702,-1165.74,0.00042557,120]
[398984360,1766046688744,-2401.84,0.00042557,120]
[398984361,1766046688783,-1158.01,0.00042557,120]
[398984362,1766046688821,-500.0,0.00042557,120]
[398984363,1766046688863,-2747.72,0.00042557,120]
[398984364,1766046688904,-2290.63,0.00042557,120]
[398984365,1766046688944,-10394.34,0.00042557,120]
[398984366,1766046688985,-1165.74,0.00042557,120]
[398984367,1766046689027,-2401.84,0.00042557,120]
[398984368,1766046689070,-1158.01,0.00042557,120]
[398984369,1766046689114,-511.37413542,0.00042557,120]
[398984370,1766046689161,-2290.63,0.00042557,120]
[398984371,1766046689216,-2747.72,0.00042557,120]
[398984372,1766046689271,-2961.08507104,0.00042557,120]
[398984373,1766046710331,-526.36,0.00024658,30]
[398984374,1766046710386,-360.0,0.00025,30]
[398984375,1766046710432,-256.0,0.00025349,120]
[398984376,1766046710478,-256.0,0.00027884,120]
[398984377,1766046710526,-526.36,0.00029492,30]
[398984378,1766046710569,-533.7,0.0003,30]
[398984379,1766046710614,-1000.0,0.00030037,120]
[398984380,1766046710659,-785.6,0.00030137,31]
[398984381,1766046710702,-607.2,0.00030137,30]
[398984382,1766046710745,-256.0,0.00030418,120]
[398984383,1766046710788,-2000.0,0.00033,40]
[398984384,1766046710833,-500.0,0.00034289,60]
[398984385,1766046710876,-151.0,0.0003429,31]
[398984386,1766046710923,-151.0,0.0003429,31]
[398984387,1766046710967,-151.0,0.0003429,31]
[398984388,1766046711012,-526.36,0.00034327,30]
[398984389,1766046711058,-540.167,0.000349,40]
[398984390,1766046711102,-312.05719315,0.00035616,89]
[398984391,1766046711148,-589.2,0.00035616,64]
[398984392,1766046711192,-455.4,0.00035616,62]
[398984393,1766046711240,-377.1,0.00035616,54]
[398984394,1766046711287,-484.8,0.00035616,31]
[398984395,1766046711335,-433.8,0.00035616,60]
[398984396,1766046711386,-479.7,0.00035616,111]
[398984397,1766046711432,-2569.0,0.00036,30]
[398984398,1766046711476,-2902.4788,0.00036,120]
[398984399,1766046711523,-500.0,0.00037,120]
[398984400,1766046711573,-500.0,0.000373,120]
[398984401,1766046711622,-5702.0,0.000378,117]
[398984402,1766046711671,-3023.0,0.00038,30]
[398984403,1766046711718,-3000.0,0.00038,30]
[398984404,1766046711764,-505.08214812,0.000389,120]
[398984405,1766046711810,-150.0,0.00038904,120]
[398984406,1766046711853,-150.0,0.00038904,120]
[398984407,1766046711899,-150.0,0.00038904,120]
[398984408,1766046711945,-150.0,0.00038904,120]
[398984409,1766046711992,-300.0,0.00039123,120]
[398984410,1766046712040,-350.0,0.00039123,120]
[398984411,1766046712089,-300.0,0.00039123,120]
[398984412,1766046712142,-300.0,0.00039123,120]
[398984413,1766046712193,-526.36,0.00039162,120]
[398984414,1766046712242,-151.0,0.00039162,120]
[398984415,1766046712292,-450.0,0.00039342,120]
[398984416,1766046712342,-450.0,0.00039342,120]
[398984417,1766046712392,-450.0,0.00039342,120]
[398984418,1766046712442,-151.0,0.00039452,120]
[398984419,1766046712494,-285.024249,0.00039452,120]
[398984420,1766046712544,-600.0,0.00039561,120]
[398984421,1766046712590,-600.0,0.00039561,120]
[398984422,1766046712636,-600.0,0.00039561,120]
[398984423,1766046712680,-750.0,0.0003978,120]
[398984424,1766046712724,-583.1,0.0003978,120]
[398984425,1766046712766,-496.3,0.0003978,120]
[398984426,1766046712809,-164.0,0.000398,120]
[398984427,1766046712852,-349.16,0.0003989,60]
[398984428,1766046712895,-500.0,0.0003989,60]
[398984429,1766046713357,-500.0,0.0003989,60]
[398984430,1766046713417,-582.90773585,0.00039999,60]
[398984431,1766046713472,-500.0,0.00039999,60]
[398984432,1766046713527,-365.27868297,0.00039999,60]
[398984433,1766046713584,-500.0,0.00039999,60]
[398984434,1766046713637,-613.26912292,0.00039999,60]
[398984435,1766046713688,-500.0,0.00039999,60]
[398984436,1766046713738,-500.0,0.00039999,45]
[398984437,1766046713788,-500.0,0.00039999,60]
[398984438,1766046713836,-500.0,0.00039999,60]
[398984439,1766046713886,-3338.24,0.00039999,120]
[398984440,1766046713935,-900.0,0.0004,120]
[398984441,1766046713983,-50000.0,0.0004,120]
[398984442,1766046714032,-500.0,0.0004,120]
[398984443,1766046714081,-151.0,0.0004,120]
[398984444,1766046714130,-151.0,0.0004,120]
[398984445,1766046714186,-151.40450066,0.0004,30]
[398984446,1766046714236,-1050.0,0.00040219,120]
[398984447,1766046714285,-500.0,0.00040272,60]
[398984448,1766046714337,-500.92158805,0.00040272,60]
[398984449,1766046714389,-2500.0,0.00040273,120]
[398984450,1766046714438,-2500.0,0.00040273,120]
[398984451,1766046714487,-2500.0,0.00040273,120]
[398984452,1766046714537,-2500.0,0.00040273,120]
[398984453,1766046714584,-2500.0,0.00040273,120]
[398984454,1766046714632,-2500.0,0.00040273,120]
[398984455,1766046714681,-2500.0,0.00040273,120]
[398984456,1766046714732,-2500.0,0.00040273,120]
[398984457,1766046714780,-2500.0,0.00040273,120]
[398984458,1766046714828,-2500.0,0.00040273,120]
[398984459,1766046714879,-2500.0,0.00040273,120]
[398984460,1766046714926,-2500.0,0.00040273,120]
[398984461,1766046714975,-2500.0,0.00040273,120]
[398984462,1766046715025,-2500.0,0.00040273,120]
[398984463,1766046715076,-2500.0,0.00040273,120]
[398984464,1766046715125,-2500.0,0.00040273,120]
[398984465,1766046715174,-2500.0,0.00040273,120]
[398984466,1766046715229,-2500.0,0.00040273,120]
[398984467,1766046715280,-506.08188058,0.00040273,120]
[398984468,1766046715329,-348.2,0.00040438,120]
[398984469,1766046715382,-1159.0,0.000405,120]
[398984470,1766046715435,-151.0,0.00040879,120]
[398984471,1766046715482,-5000.0,0.00040895,120]
[398984472,1766046715531,-270.81463,0.00040965,120]
[398984473,1766046715578,-1385.0,0.00040965,30]
[398984474,1766046715630,-1000.0,0.00040999,120]
[398984475,1766046715676,-500.0,0.00040999,60]
[398984476,1766046715722,-116733.69011476,0.00041,30]
[398984477,1766046715766,-8376.90394601,0.00041,30]
[398984478,1766046715810,-164.0,0.00041,120]
[398984479,1766046715853,-36174.76278598,0.00041,30]
[398984480,1766046715898,-151.0,0.00041,120]
[398984481,1766046715946,-500.0,0.00041085,120]
[398984482,1766046716004,-500.0,0.00041093,60]
[398984483,1766046716056,-500.0,0.00041093,60]
[398984484,1766046716109,-500.0,0.00041093,60]
[398984485,1766046716155,-500.0,0.00041093,45]
[398984486,1766046716202,-500.0,0.00041093,60]
[398984487,1766046716250,-17689.72528782,0.00041094,120]
[398984488,1766046716306,-500.0,0.00041094,60]
[398984489,1766046716363,-500.0,0.00041094,60]
[398984490,1766046716412,-583.71714779,0.00041094,60]
[398984491,1766046716462,-500.0,0.00041094,60]
[398984492,1766046716508,-500.0,0.00041094,60]
[398984493,1766046716552,-500.0,0.00041094,60]
[398984494,1766046716595,-500.0,0.00041094,60]
[398984495,1766046716639,-558.6,0.00041094,60]
[398984496,1766046716679,-500.0,0.00041094,60]
[398984497,1766046716727,-500.0,0.00041094,60]
[398984498,1766046716769,-500.0,0.00041094,60]
[398984499,1766046716811,-500.0,0.00041094,60]
[398984500,1766046716853,-500.0,0.00041094,60]
[398984501,1766046716895,-500.0,0.00041094,60]
[398984502,1766046716935,-500.0,0.00041094,60]
[398984503,1766046716977,-500.0,0.00041094,60]
[398984504,1766046717021,-170.99084173,0.00041094,60]
[398984505,1766046717068,-500.0,0.00041094,60]
[398984506,1766046717114,-500.0,0.00041094,60]
[398984507,1766046717164,-500.0,0.00041094,60]
[398984508,1766046717213,-500.0,0.00041094,60]
[398984509,1766046717264,-500.0,0.00041094,60]
[398984510,1766046717325,-500.0,0.00041094,60]
[398984511,1766046717377,-500.0,0.00041094,60]
[398984512,1766046717429,-500.0,0.00041094,60]
[398984513,1766046717486,-500.0,0.00041094,60]
[398984514,1766046717535,-482.07188237,0.00041094,60]
[398984515,1766046717580,-500.0,0.00041094,60]
[398984518,1766046717627,-409.77146087,0.00041094,60]
[398984519,1766046717673,-500.0,0.00041094,60]
[398984520,1766046717721,-500.0,0.00041094,60]
[398984521,1766046717768,-500.0,0.00041094,60]
[398984522,1766046717819,-500.0,0.00041094,60]
[398984523,1766046717863,-500.0,0.00041094,60]
[398984524,1766046717910,-500.0,0.00041094,60]
[398984525,1766046717956,-500.0,0.00041094,60]
[398984526,1766046718610,-155.58129497,0.00041094,60]
[398984527,1766046718661,-239.96829058,0.00041094,45]
[398984528,1766046718708,-500.0,0.00041094,60]
[398984529,1766046718754,-169.26638624,0.00041095,120]
[398984530,1766046718808,-633.52463157,0.00041095,120]
[398984531,1766046718855,-1419.33,0.00041095,120]
[398984532,1766046718902,-1419.33,0.00041095,120]
[398984533,1766046718945,-1419.33,0.00041095,120]
[398984534,1766046718990,-1419.33,0.00041095,120]
[398984535,1766046719036,-1419.33,0.00041095,120]
[398984536,1766046719082,-1419.33,0.00041095,120]
[398984537,1766046719127,-1419.33,0.00041095,120]
[398984538,1766046719182,-1419.33,0.00041095,120]
[398984539,1766046719236,-1419.33,0.00041095,120]
[398984540,1766046719291,-1419.33,0.00041095,120]
[398984541,1766046719345,-1419.33,0.00041095,120]
[398984542,1766046719392,-1419.33,0.00041095,120]
[398984543,1766046719439,-1419.33,0.00041095,120]
[398984544,1766046719488,-1419.33,0.00041095,120]
[398984545,1766046719542,-1419.33,0.00041095,120]
[398984546,1766046719592,-1419.33,0.00041095,120]
[398984547,1766046719641,-1419.33,0.00041095,120]
[398984548,1766046719688,-1419.33,0.00041095,120]
[398984549,1766046719734,-1419.33,0.00041095,120]
[398984550,1766046719779,-1419.33,0.00041095,120]
[398984551,1766046719823,-1419.33,0.00041095,120]
[398984552,1766046719867,-1419.33,0.00041095,120]
[398984553,1766046719914,-1419.36006593,0.00041095,120]
[398984554,1766046719960,-227.02828563,0.00041095,120]
[398984555,1766046720009,-188.33786666,0.00041095,120]
[398984556,1766046720066,-277.60239078,0.00041095,120]
[398984557,1766046720126,-156.52034768,0.00041095,120]
[398984558,1766046720178,-304.81452682,0.00041095,120]
[398984559,1766046720231,-500.0,0.00041095,120]
[398984560,1766046720283,-287.69849775,0.00041095,120]
[398984561,1766046720334,-195.81405618,0.00041095,120]
[398984562,1766046720388,-153.95310903,0.00041095,120]
[398984563,1766046720437,-256.72340454,0.00041095,120]
[398984564,1766046720484,-346.59982268,0.00041095,120]
[398984565,1766046720532,-178.32809188,0.00041095,120]
[398984566,1766046720579,-172.16162295,0.00041095,120]
[398984567,1766046720626,-178.24540226,0.00041095,120]
[398984568,1766046720668,-249.45916948,0.00041095,120]
[398984569,1766046720712,-203.94822682,0.00041095,120]
[398984570,1766046720752,-178.61626941,0.00041095,120]
[398984571,1766046720792,-257.36254203,0.00041095,120]
[398984572,1766046720832,-500.0,0.00041095,120]
[398984573,1766046720872,-500.0,0.00041095,120]
[398984574,1766046720916,-500.0,0.00041095,120]
[398984575,1766046720956,-500.0,0.00041095,120]
[398984576,1766046720998,-500.0,0.00041095,120]
[398984577,1766046721043,-500.0,0.00041095,120]
[398984578,1766046721087,-500.0,0.00041095,120]
[398984579,1766046721132,-500.0,0.00041095,120]
[398984580,1766046721176,-500.0,0.00041095,120]
[398984581,1766046721226,-500.0,0.00041095,120]
[398984582,1766046721274,-500.0,0.00041095,120]
[398984583,1766046721322,-500.0,0.00041095,120]
[398984584,1766046721372,-600.35518044,0.00041095,120]
[398984585,1766046721423,-531.90087452,0.00041095,120]
[398984586,1766046721469,-500.0,0.00041095,120]
[398984587,1766046721516,-500.0,0.00041095,120]
[398984588,1766046721562,-302.58140976,0.00041095,120]
[398984589,1766046721608,-500.0,0.00041095,120]
[398984590,1766046721654,-500.93421688,0.00041095,120]
[398984591,1766046721697,-501.42549045,0.00041095,120]
[398984592,1766046721740,-501.46553204,0.00041095,120]
[398984593,1766046721782,-501.61289436,0.00041095,120]
[398984594,1766046721825,-502.52749886,0.00041095,120]
[398984595,1766046721867,-500.93885423,0.00041095,120]
[398984596,1766046721908,-500.0,0.00041095,120]
[398984597,1766046721951,-500.40801042,0.00041095,120]
[398984598,1766046721996,-500.77606767,0.00041095,120]
[398984599,1766046722038,-500.61103063,0.00041095,120]
[398984600,1766046722083,-500.28294128,0.00041095,120]
[398984601,1766046722127,-500.6746531,0.00041095,120]
[398984602,1766046722174,-500.54924172,0.00041095,120]
[398984603,1766046722222,-501.18171184,0.00041095,120]
[398984604,1766046722268,-500.0,0.00041095,120]
[398984605,1766046722316,-536.74102232,0.00041095,120]
[398984606,1766046722361,-528.44432646,0.00041095,120]
[398984607,1766046722408,-500.0,0.00041095,120]
[398984608,1766046722459,-500.0,0.00041095,120]
[398984609,1766046722505,-481.14340385,0.00041095,120]
[398984610,1766046722553,-500.0,0.00041095,120]
[398984611,1766046722598,-272.70611724,0.00041095,120]
[398984612,1766046722641,-500.0,0.00041095,120]
[398984613,1766046722686,-500.0,0.00041095,120]
[398984614,1766046722734,-500.0,0.00041095,120]
[398984615,1766046722780,-494.22591718,0.00041095,120]
[398984616,1766046722827,-500.0,0.00041095,120]
[398984617,1766046722873,-500.0,0.00041095,120]
[398984618,1766046722918,-500.0,0.00041095,120]
[398984619,1766046722963,-264.03660317,0.00041095,120]
[398984620,1766046723356,-500.0,0.00041095,120]
[398984621,1766046723406,-500.0,0.00041095,120]
[398984622,1766046723454,-500.0,0.00041095,120]
[398984623,1766046723504,-500.0,0.00041095,120]
[398984624,1766046723551,-410.21086189,0.00041095,120]
[398984625,1766046723600,-500.0,0.00041095,120]
[398984626,1766046723647,-408.85300839,0.00041095,120]
[398984627,1766046723694,-500.0,0.00041095,120]
[398984628,1766046723741,-500.0,0.00041095,120]
[398984629,1766046723789,-512.56006077,0.00041095,120]
[398984630,1766046723834,-500.0,0.00041095,120]
[398984631,1766046723881,-508.25352685,0.00041095,120]
[398984632,1766046723927,-500.0,0.00041095,120]
[398984633,1766046723972,-500.37253939,0.00041095,120]
[398984634,1766046724017,-500.0,0.00041095,30]
[398984635,1766046724063,-500.0,0.00041095,30]
[398984636,1766046724112,-500.0,0.00041095,120]
[398984637,1766046724161,-370.75052139,0.00041095,120]
[398984638,1766046724208,-500.0,0.00041095,120]
[398984639,1766046724255,-247.09075135,0.00041095,120]
[398984640,1766046724304,-500.0,0.00041095,120]
[398984641,1766046724352,-512.65961898,0.00041095,120]
[398984642,1766046724400,-500.0,0.00041095,120]
[398984643,1766046724447,-500.0,0.00041095,120]
[398984645,1766046724497,-182.33827314,0.00041095,120]
[398984646,1766046724544,-502.39166816,0.00041095,120]
[398984647,1766046724589,-502.52793497,0.00041095,120]
[398984648,1766046724635,-500.0,0.00041095,120]
[398984649,1766046724680,-483.05564788,0.00041095,120]
[398984650,1766046724726,-500.0,0.00041095,120]
[398984651,1766046724771,-500.0,0.00041095,120]
[398984652,1766046724815,-500.0,0.00041095,120]
[398984653,1766046724858,-500.0,0.00041095,120]
[398984654,1766046724912,-500.0,0.00041095,120]
[398984655,1766046724968,-500.0,0.00041095,120]
[398984656,1766046725022,-500.0,0.00041095,120]
[398984657,1766046725070,-500.0,0.00041095,120]
[398984658,1766046725117,-500.0,0.00041095,120]
[398984659,1766046725166,-500.0,0.00041095,120]
[398984660,1766046725213,-500.0,0.00041095,120]
[398984661,1766046725263,-500.0,0.00041095,120]
[398984662,1766046725309,-500.0,0.00041095,120]
[398984663,1766046725356,-500.0,0.00041095,120]
[398984664,1766046725402,-500.0,0.00041095,120]
[398984665,1766046725447,-500.0,0.00041095,120]
[398984666,1766046725496,-500.0,0.00041095,120]
[398984667,1766046725541,-500.0,0.00041095,120]
[398984668,1766046725586,-500.0,0.00041095,120]
[398984669,1766046725631,-500.0,0.00041095,120]
[398984670,1766046725676,-500.0,0.00041095,120]
[398984671,1766046725721,-501.13917047,0.00041095,120]
[398984672,1766046725766,-500.0,0.00041095,120]
[398984673,1766046725810,-501.12930518,0.00041095,120]
[398984674,1766046725852,-500.0,0.00041095,120]
[398984675,1766046725895,-501.46215475,0.00041095,120]
[398984676,1766046725937,-500.0,0.00041095,120]
[398984677,1766046725977,-500.0,0.00041095,120]
[398984678,1766046726019,-500.0,0.00041095,120]
[398984679,1766046726062,-500.0,0.00041095,120]
[398984680,1766046726106,-500.0,0.00041095,120]
[398984681,1766046726148,-500.0,0.00041095,120]
[398984682,1766046726190,-434.22945838,0.00041095,120]
[398984683,1766046726233,-2712.32,0.00041095,120]
[398984684,1766046726276,-2712.32,0.00041095,120]
[398984685,1766046726333,-2712.32,0.00041095,120]
[398984686,1766046726381,-2712.32,0.00041095,120]
[398984687,1766046726431,-2712.32,0.00041095,120]
[398984688,1766046726474,-2712.32,0.00041095,120]
[398984689,1766046726517,-2712.32,0.00041095,120]
[398984690,1766046726562,-2712.32,0.00041095,120]
[398984691,1766046726607,-2712.32,0.00041095,120]
[398984692,1766046726652,-2712.32,0.00041095,120]
[398984693,1766046726694,-2712.32,0.00041095,120]
[398984694,1766046726736,-2712.32,0.00041095,120]
[398984695,1766046726777,-2712.32,0.00041095,120]
[398984696,1766046726818,-2712.32,0.00041095,120]
[398984697,1766046726860,-2712.32,0.00041095,120]
[398984698,1766046726900,-2712.32,0.00041095,120]
[398984699,1766046726941,-2712.32,0.00041095,120]
[398984700,1766046726979,-2712.32,0.00041095,120]
[398984701,1766046727018,-2712.32,0.00041095,120]
[398984702,1766046727058,-2712.32,0.00041095,120]
[398984703,1766046727098,-2712.32,0.00041095,120]
[398984704,1766046727138,-2712.32,0.00041095,120]
[398984705,1766046727181,-2712.32,0.00041095,120]
[398984706,1766046727223,-2712.43273827,0.00041095,120]
[398984707,1766046727266,-538.05,0.00041095,120]
[398984708,1766046727308,-538.05,0.00041095,120]
[398984709,1766046727353,-538.05,0.00041095,120]
[398984710,1766046727396,-538.05,0.00041095,120]
[398984711,1766046727438,-538.05,0.00041095,120]
[398984712,1766046727478,-538.05,0.00041095,120]
[398984713,1766046727519,-538.05,0.00041095,120]
[398984714,1766046727560,-538.05,0.00041095,120]
[398984715,1766046727605,-538.05,0.00041095,120]
[398984716,1766046727926,-538.05,0.00041095,120]
[398984717,1766046727976,-538.05,0.00041095,120]
[398984718,1766046728024,-538.05,0.00041095,120]
[398984719,1766046728073,-538.05,0.00041095,120]
[398984720,1766046728122,-538.05,0.00041095,120]
[398984721,1766046728173,-538.05,0.00041095,120]
[398984722,1766046728226,-538.05,0.00041095,120]
[398984723,1766046728276,-538.05,0.00041095,120]
[398984724,1766046728326,-538.05,0.00041095,120]
[398984725,1766046728376,-538.05,0.00041095,120]
[398984726,1766046728431,-538.05,0.00041095,120]
[398984727,1766046728481,-538.05,0.00041095,120]
[398984728,1766046728531,-538.05,0.00041095,120]
[398984729,1766046728580,-538.05,0.00041095,120]
[398984730,1766046728627,-538.25943091,0.00041095,120]
[398984731,1766046728672,-500.0,0.00041095,120]
[398984732,1766046728718,-500.0,0.00041095,120]
[398984733,1766046728765,-500.0,0.00041095,120]
[398984734,1766046728811,-500.0,0.00041095,120]
[398984735,1766046728857,-500.0,0.00041095,120]
[398984736,1766046728903,-500.0,0.00041095,120]
[398984737,1766046728949,-500.0,0.00041095,120]
[398984738,1766046728997,-500.0,0.00041095,120]
[398984739,1766046729044,-500.0,0.00041095,120]
[398984740,1766046729093,-377.14234392,0.00041095,120]
[398984741,1766046729140,-500.0,0.00041095,120]
[398984742,1766046729186,-500.0,0.00041095,120]
[398984743,1766046729233,-500.0,0.00041095,120]
[398984744,1766046729283,-500.0,0.00041095,120]
[398984745,1766046729331,-433.88080195,0.00041095,120]
[398984746,1766046729380,-500.0,0.00041095,120]
[398984747,1766046729431,-500.0,0.00041095,120]
[398984748,1766046729477,-500.0,0.00041095,120]
[398984749,1766046729522,-500.0,0.00041095,120]
[398984750,1766046729566,-500.0,0.00041095,120]
[398984751,1766046729613,-500.0,0.00041095,120]
[398984752,1766046729661,-500.0,0.00041095,120]
[398984753,1766046729714,-519.43619128,0.00041095,120]
[398984754,1766046729762,-500.0,0.00041095,120]
[398984755,1766046729809,-500.0,0.00041095,120]
[398984756,1766046729856,-500.0,0.00041095,120]
[398984757,1766046729905,-500.0,0.00041095,120]
[398984758,1766046729952,-500.0,0.00041095,120]
[398984759,1766046729999,-500.0,0.00041095,120]
[398984760,1766046730051,-296.36846101,0.00041095,120]
[398984761,1766046730116,-500.0,0.00041095,120]
[398984762,1766046730163,-500.0,0.00041095,120]
[398984763,1766046730211,-578.11734721,0.00041095,120]
[398984764,1766046730259,-500.0,0.00041095,120]
[398984765,1766046730307,-500.0,0.00041095,120]
[398984766,1766046730354,-504.17545071,0.00041095,120]